fUST/lending_fUST_20260608
["ID","MTS","AMOUNT","RATE_DAILY","PERIOD"]
[424443664,1780903832000,-500.0,0.00013999,2]
[424443663,1780903832000,-320.80032781,0.00013999,2]
[424443666,1780903832000,-500.0,0.00013999,2]
[424443667,1780903832000,-5548.14869234,0.00014,2]
[424443660,1780903832000,-500.0,0.00013998,2]
[424443662,1780903832000,-500.0,0.00013999,2]
[424443661,1780903832000,-380.4613733,0.00013998,2]
[424443658,1780903832000,-372.51378154,0.00013998,2]
[424443659,1780903832000,-500.0,0.00013998,2]
[424443665,1780903832000,-500.0,0.00013999,2]
[424443744,1780903840000,-933.43019471,0.00014,2]
[424443859,1780903931000,-287.35805208,0.0001386,2]
[424443860,1780903948000,-951.52879245,0.00014,2]
[424443864,1780904178000,-643.75627549,0.00013715,2]
[424443865,1780904232000,-1448.45161986,0.00013715,2]
[424443866,1780904285000,-1969.5320901,0.0001303,2]
[424443867,1780904338000,-1566.01135506,0.00014,2]
[424443868,1780904391000,-152.0,0.00014051,7]
[424443869,1780904445000,-152.0,0.00014051,7]
[424443872,1780904498000,-151.0,0.00014051,2]
[424443873,1780904526000,500.0,0.00023287,120]
[424443874,1780904552000,-151.0,0.00014051,2]
[424443875,1780904556000,500.0,0.00023287,120]
[424443876,1780904605000,-319.56884762,0.00013715,2]
[424443877,1780904606000,500.0,0.00023287,120]
[424443879,1780904618000,500.0,0.00023287,120]
[424443880,1780904641000,1000.0,0.00023287,120]
[424443881,1780904658000,-365.22154014,0.00013715,2]
[424443882,1780904679000,1000.0,0.00023287,120]
[424443883,1780904700000,1000.0,0.00023287,120]
[424443885,1780904739000,-235.21209929,0.00014,2]
[424443884,1780904739000,-570.65865646,0.00013715,2]
[424443887,1780904763000,375.55418893,0.00023287,120]
[424443889,1780904813000,-152.0,0.00013987,7]
[424443891,1780904831000,-2031.98361457,0.00014,2]
[424443890,1780904831000,-152.0,0.00013987,7]
[424443892,1780904832000,-899.65162384,0.00014,2]
[424443893,1780904867000,-12784.68145475,0.00014,2]
[424443894,1780904885000,1000.0,0.00023287,120]
[424443899,1780904903000,1000.0,0.00023287,120]
[424443901,1780904920000,-500.0,0.00013999,2]
[424443910,1780904974000,-151.0,0.00014051,2]
[424443911,1780905027000,-153.0210639,0.00014051,2]
[424443957,1780905032000,-53.58427836,0.00014199,2]
[424443955,1780905032000,-300.0,0.00014199,2]
[424443954,1780905032000,-217.188,0.00014091,2]
[424443968,1780905032000,-225.94774757,0.00014199,2]
[424443950,1780905032000,-153.0210639,0.00014051,2]
[424443973,1780905032000,-396.57271815,0.000142,2]
[424443974,1780905032000,-767.60608716,0.000142,2]
[424443985,1780905032000,-707.36272646,0.000142,2]
[424443983,1780905032000,-846.49142074,0.000142,2]
[424443971,1780905032000,-165.36722665,0.00014199,2]
[424443952,1780905032000,-152.0,0.00014089,7]
[424444209,1780905041000,-1277.76299903,0.00014278,2]
[424444208,1780905041000,-500.0,0.00014277,2]
[424444207,1780905041000,-272.12807214,0.00014277,2]
[424444206,1780905041000,-500.0,0.00014277,2]
[424444210,1780905041000,-9872.01313753,0.00014278,2]
[424444205,1780905041000,-500.0,0.00014277,2]
[424444204,1780905041000,-171.25012711,0.00014229,2]
[424444202,1780905041000,-183.2686388,0.000142,2]
[424444225,1780905084000,159.81003924,0.00024725,110]
[424444226,1780905084000,159.81003924,0.00024725,110]
[424444227,1780905085000,159.81003924,0.00024725,110]
[424444229,1780905085000,159.81003924,0.00024725,110]
[424444228,1780905085000,159.81003924,0.00024725,110]
[424444232,1780905086000,159.81003924,0.00024725,110]
[424444231,1780905086000,159.81003924,0.00024725,110]
[424444230,1780905086000,159.81003924,0.00024725,110]
[424444237,1780905125000,324.50180109,0.00024725,120]
[424444238,1780905142000,7712.32738415,0.00014178,2]
[424444242,1780905187000,-36607.95363445,0.00014178,2]
[424444254,1780905672000,-305.14575653,0.0001303,2]
[424444255,1780905689000,-348.38926945,0.0001303,2]
[424444256,1780905716000,-500.0,0.00013967,2]
[424444257,1780905749000,-500.0,0.00013967,2]
[424444258,1780905792000,-541.44128999,0.00013967,2]
[424444259,1780905809000,-208.11,0.00013993,2]
[424444260,1780905904000,-3295.04627955,0.0001,2]
[424444261,1780905904000,-179.42096914,0.00011,2]
[424444262,1780905904000,-6525.53275131,0.000139,2]
[424444265,1780905918000,-8233.01745498,0.000139,2]
[424444264,1780905918000,-1766.98254502,0.00013761,2]
[424444263,1780905918000,-3233.01745498,0.00013761,2]
[424444266,1780905928000,-10000.0,0.000139,2]
[424444267,1780905930000,-10000.0,0.000139,2]
[424444268,1780905931000,-10000.0,0.000139,2]
[424444270,1780905940000,-4673.4609137,0.000139,2]
[424444269,1780905940000,-326.5390863,0.0001,2]
[424444271,1780905971000,-345.91653002,0.000138,2]
[424444272,1780905983000,-500.84930981,0.00013899,2]
[424444273,1780905983000,-4499.15069019,0.000139,2]
[424444274,1780906025000,-307.78064997,0.00013899,2]
[424444275,1780906027000,-884.29269984,0.00013899,2]
[424444276,1780906027000,-458.69584657,0.00013899,2]
[424444277,1780906064000,-10000.0,0.000138,2]
[424444279,1780906065000,-10000.0,0.000138,2]
[424444278,1780906065000,-10000.0,0.000138,2]
[424444280,1780906066000,-10000.0,0.000138,2]
[424444281,1780906078000,-37980.13028267,0.000138,2]
[424444282,1780906092000,-37980.13028267,0.000138,2]
[424444283,1780906093000,-10000.0,0.000138,2]
[424444285,1780906095000,-10000.0,0.000138,2]
[424444284,1780906095000,-10000.0,0.000138,2]
[424444286,1780906096000,-10000.0,0.000138,2]
[424444287,1780906097000,-10000.0,0.000138,2]
[424444288,1780906098000,-10000.0,0.000138,2]
[424444289,1780906099000,-10000.0,0.000138,2]
[424444290,1780906100000,-10000.0,0.000138,2]
[424444291,1780906144000,-1205.43275758,0.00013799,2]
[424444292,1780906144000,-490.02669692,0.00013799,2]
[424444294,1780906144000,-1205.43275758,0.00013799,2]
[424444293,1780906144000,-1205.43275758,0.00013799,2]
[424444295,1780906144000,-1205.43275758,0.00013799,2]
[424444298,1780906145000,-1205.43275758,0.00013799,2]
[424444299,1780906145000,-30.94400002,0.00013799,2]
[424444297,1780906145000,-1205.43275758,0.00013799,2]
[424444296,1780906145000,-1205.43275758,0.00013799,2]
[424444302,1780906154000,-1205.43275758,0.00013799,2]
[424444301,1780906154000,-1174.48875756,0.00013799,2]
[424444304,1780906154000,-1205.43275758,0.00013799,2]
[424444305,1780906154000,-209.2129697,0.00013799,2]
[424444303,1780906154000,-1205.43275758,0.00013799,2]
[424444308,1780906167000,-50.34745454,0.00013799,2]
[424444307,1780906167000,-1205.43275758,0.00013799,2]
[424444306,1780906167000,-996.21978788,0.00013799,2]
[424444311,1780906181000,-900.0,0.0001295,2]
[424444331,1780906232000,-129.76671677,0.00013799,2]
[424444328,1780906232000,-2.4925921,0.0001295,2]
[424444330,1780906232000,-150.5994006,0.00013799,2]
[424444329,1780906232000,-150.5994006,0.00013799,2]
[424444333,1780906232000,-255.02844099,0.00013799,2]
[424444332,1780906232000,-171.70143984,0.00013799,2]
[424444565,1780906241000,-0.71527282,0.00013799,2]
[424444574,1780906246000,-1205.43275758,0.00013799,2]
[424444575,1780906246000,-1205.43275758,0.00013799,2]
[424444576,1780906246000,-1205.43275758,0.00013799,2]
[424444572,1780906246000,-1205.43275758,0.00013799,2]
[424444573,1780906246000,-1205.43275758,0.00013799,2]
[424444571,1780906246000,-899.34158923,0.00013799,2]
[424444620,1780906247000,-500.0,0.00013799,2]
[424444621,1780906247000,-532.24956517,0.00013799,2]
[424444619,1780906247000,-532.24956517,0.00013799,2]
[424444616,1780906247000,-500.0,0.00013799,2]
[424444617,1780906247000,-532.24956517,0.00013799,2]
[424444615,1780906247000,-500.0,0.00013799,2]
[424444618,1780906247000,-500.0,0.00013799,2]
[424444612,1780906247000,-500.0,0.00013799,2]
[424444624,1780906247000,-500.0,0.00013799,2]
[424444614,1780906247000,-500.0,0.00013799,2]
[424444613,1780906247000,-532.24956517,0.00013799,2]
[424444611,1780906247000,-532.24956517,0.00013799,2]
[424444622,1780906247000,-500.0,0.00013799,2]
[424444623,1780906247000,-532.24956517,0.00013799,2]
[424444633,1780906247000,-500.0,0.00013799,2]
[424444625,1780906247000,-532.24956517,0.00013799,2]
[424444634,1780906247000,-532.24956517,0.00013799,2]
[424444635,1780906247000,-500.0,0.00013799,2]
[424444629,1780906247000,-500.0,0.00013799,2]
[424444628,1780906247000,-532.24956517,0.00013799,2]
[424444631,1780906247000,-532.24956517,0.00013799,2]
[424444627,1780906247000,-500.0,0.00013799,2]
[424444632,1780906247000,-532.24956517,0.00013799,2]
[424444648,1780906247000,-532.24956517,0.00013799,2]
[424444636,1780906247000,-532.24956517,0.00013799,2]
[424444639,1780906247000,-532.24956517,0.00013799,2]
[424444638,1780906247000,-500.0,0.00013799,2]
[424444637,1780906247000,-500.0,0.00013799,2]
[424444608,1780906247000,-532.24956517,0.00013799,2]
[424444626,1780906247000,-500.0,0.00013799,2]
[424444606,1780906247000,-532.24956517,0.00013799,2]
[424444596,1780906247000,-500.0,0.00013799,2]
[424444607,1780906247000,-500.0,0.00013799,2]
[424444582,1780906247000,-506.89611728,0.00013799,2]
[424444578,1780906247000,-1205.43275758,0.00013799,2]
[424444577,1780906247000,-1205.43275758,0.00013799,2]
[424444579,1780906247000,-1205.43275758,0.00013799,2]
[424444580,1780906247000,-532.24956517,0.00013799,2]
[424444581,1780906247000,-500.0,0.00013799,2]
[424444583,1780906247000,-500.0,0.00013799,2]
[424444585,1780906247000,-500.0,0.00013799,2]
[424444595,1780906247000,-500.0,0.00013799,2]
[424444587,1780906247000,-532.24956517,0.00013799,2]
[424444589,1780906247000,-532.24956517,0.00013799,2]
[424444584,1780906247000,-320.91492961,0.00013799,2]
[424444586,1780906247000,-500.0,0.00013799,2]
[424444590,1780906247000,-500.0,0.00013799,2]
[424444588,1780906247000,-500.0,0.00013799,2]
[424444592,1780906247000,-532.24956517,0.00013799,2]
[424444594,1780906247000,-532.24956517,0.00013799,2]
[424444593,1780906247000,-500.0,0.00013799,2]
[424444591,1780906247000,-163.27903233,0.00013799,2]
[424444597,1780906247000,-532.24956517,0.00013799,2]
[424444609,1780906247000,-500.0,0.00013799,2]
[424444599,1780906247000,-500.0,0.00013799,2]
[424444610,1780906247000,-500.0,0.00013799,2]
[424444598,1780906247000,-500.0,0.00013799,2]
[424444603,1780906247000,-500.0,0.00013799,2]
[424444600,1780906247000,-500.0,0.00013799,2]
[424444601,1780906247000,-532.24956517,0.00013799,2]
[424444605,1780906247000,-500.0,0.00013799,2]
[424444602,1780906247000,-500.0,0.00013799,2]
[424444604,1780906247000,-532.24956517,0.00013799,2]
[424444649,1780906247000,-532.24956517,0.00013799,2]
[424444630,1780906247000,-500.0,0.00013799,2]
[424444641,1780906247000,-532.24956517,0.00013799,2]
[424444682,1780906247000,-532.24956517,0.00013799,2]
[424444680,1780906247000,-532.24956517,0.00013799,2]
[424444691,1780906247000,-532.24956517,0.00013799,2]
[424444683,1780906247000,-500.0,0.00013799,2]
[424444684,1780906247000,-532.24956517,0.00013799,2]
[424444688,1780906247000,-532.24956517,0.00013799,2]
[424444685,1780906247000,-500.0,0.00013799,2]
[424444686,1780906247000,-500.0,0.00013799,2]
[424444689,1780906247000,-500.0,0.00013799,2]
[424444690,1780906247000,-532.24956517,0.00013799,2]
[424444687,1780906247000,-532.24956517,0.00013799,2]
[424444693,1780906247000,-532.24956517,0.00013799,2]
[424444695,1780906247000,-532.24956517,0.00013799,2]
[424444700,1780906247000,-500.0,0.00013799,2]
[424444681,1780906247000,-500.0,0.00013799,2]
[424444702,1780906247000,-500.0,0.00013799,2]
[424444704,1780906247000,-532.24956517,0.00013799,2]
[424444692,1780906247000,-500.0,0.00013799,2]
[424444694,1780906247000,-500.0,0.00013799,2]
[424444701,1780906247000,-532.24956517,0.00013799,2]
[424444698,1780906247000,-500.0,0.00013799,2]
[424444699,1780906247000,-532.24956517,0.00013799,2]
[424444696,1780906247000,-500.0,0.00013799,2]
[424444706,1780906247000,-500.0,0.00013799,2]
[424444705,1780906247000,-532.24956517,0.00013799,2]
[424444709,1780906247000,-532.24956517,0.00013799,2]
[424444708,1780906247000,-532.24956517,0.00013799,2]
[424444707,1780906247000,-532.24956517,0.00013799,2]
[424444710,1780906247000,-532.24956517,0.00013799,2]
[424444642,1780906247000,-500.0,0.00013799,2]
[424444697,1780906247000,-532.24956517,0.00013799,2]
[424444668,1780906247000,-212.98174111,0.00013799,2]
[424444703,1780906247000,-532.24956517,0.00013799,2]
[424444679,1780906247000,-532.24956517,0.00013799,2]
[424444674,1780906247000,-500.0,0.00013799,2]
[424444647,1780906247000,-500.0,0.00013799,2]
[424444643,1780906247000,-532.24956517,0.00013799,2]
[424444645,1780906247000,-532.24956517,0.00013799,2]
[424444640,1780906247000,-500.0,0.00013799,2]
[424444646,1780906247000,-500.0,0.00013799,2]
[424444644,1780906247000,-500.0,0.00013799,2]
[424444661,1780906247000,-500.0,0.00013799,2]
[424444662,1780906247000,-532.24956517,0.00013799,2]
[424444652,1780906247000,-532.24956517,0.00013799,2]
[424444650,1780906247000,-500.0,0.00013799,2]
[424444654,1780906247000,-500.0,0.00013799,2]
[424444653,1780906247000,-532.24956517,0.00013799,2]
[424444658,1780906247000,-500.0,0.00013799,2]
[424444656,1780906247000,-500.0,0.00013799,2]
[424444651,1780906247000,-532.24956517,0.00013799,2]
[424444657,1780906247000,-532.24956517,0.00013799,2]
[424444669,1780906247000,-532.24956517,0.00013799,2]
[424444655,1780906247000,-532.24956517,0.00013799,2]
[424444673,1780906247000,-532.24956517,0.00013799,2]
[424444676,1780906247000,-532.24956517,0.00013799,2]
[424444667,1780906247000,-532.24956517,0.00013799,2]
[424444678,1780906247000,-500.0,0.00013799,2]
[424444666,1780906247000,-500.0,0.00013799,2]
[424444671,1780906247000,-500.0,0.00013799,2]
[424444664,1780906247000,-500.0,0.00013799,2]
[424444675,1780906247000,-500.0,0.00013799,2]
[424444665,1780906247000,-532.24956517,0.00013799,2]
[424444663,1780906247000,-532.24956517,0.00013799,2]
[424444659,1780906247000,-532.24956517,0.00013799,2]
[424444660,1780906247000,-500.0,0.00013799,2]
[424444731,1780906248000,-2022.19752057,0.00013799,2]
[424444735,1780906248000,-2022.19752057,0.00013799,2]
[424444734,1780906248000,-745.77686273,0.00013799,2]
[424444729,1780906248000,-2022.19752057,0.00013799,2]
[424444737,1780906248000,-745.77686273,0.00013799,2]
[424444733,1780906248000,-2022.19752057,0.00013799,2]
[424444732,1780906248000,-745.77686273,0.00013799,2]
[424444736,1780906248000,-2022.19752057,0.00013799,2]
[424444752,1780906248000,-745.77686273,0.00013799,2]
[424444739,1780906248000,-2022.19752057,0.00013799,2]
[424444745,1780906248000,-745.77686273,0.00013799,2]
[424444743,1780906248000,-745.77686273,0.00013799,2]
[424444744,1780906248000,-2022.19752057,0.00013799,2]
[424444753,1780906248000,-2022.19752057,0.00013799,2]
[424444754,1780906248000,-2022.19752057,0.00013799,2]
[424444742,1780906248000,-2022.19752057,0.00013799,2]
[424444751,1780906248000,-2022.19752057,0.00013799,2]
[424444738,1780906248000,-745.77686273,0.00013799,2]
[424444740,1780906248000,-2022.19752057,0.00013799,2]
[424444715,1780906248000,-532.24956517,0.00013799,2]
[424444741,1780906248000,-745.77686273,0.00013799,2]
[424444747,1780906248000,-2022.19752057,0.00013799,2]
[424444714,1780906248000,-500.0,0.00013799,2]
[424444716,1780906248000,-500.0,0.00013799,2]
[424444711,1780906248000,-532.24956517,0.00013799,2]
[424444717,1780906248000,-532.24956517,0.00013799,2]
[424444712,1780906248000,-500.0,0.00013799,2]
[424444713,1780906248000,-532.24956517,0.00013799,2]
[424444718,1780906248000,-1644.36341326,0.00013799,2]
[424444719,1780906248000,-1644.36341326,0.00013799,2]
[424444720,1780906248000,-1644.36341326,0.00013799,2]
[424444721,1780906248000,-1644.36341326,0.00013799,2]
[424444722,1780906248000,-1644.36341326,0.00013799,2]
[424444724,1780906248000,-1644.36341326,0.00013799,2]
[424444723,1780906248000,-1644.36341326,0.00013799,2]
[424444725,1780906248000,-1644.36341326,0.00013799,2]
[424444728,1780906248000,-2022.19752057,0.00013799,2]
[424444727,1780906248000,-2022.19752057,0.00013799,2]
[424444730,1780906248000,-745.77686273,0.00013799,2]
[424444746,1780906248000,-745.77686273,0.00013799,2]
[424444726,1780906248000,-1644.36341326,0.00013799,2]
[424444755,1780906248000,-745.77686273,0.00013799,2]
[424444775,1780906248000,-745.77686273,0.00013799,2]
[424444773,1780906248000,-745.77686273,0.00013799,2]
[424444777,1780906248000,-2022.19752057,0.00013799,2]
[424444774,1780906248000,-745.77686273,0.00013799,2]
[424444780,1780906248000,-745.77686273,0.00013799,2]
[424444778,1780906248000,-745.77686273,0.00013799,2]
[424444779,1780906248000,-745.77686273,0.00013799,2]
[424444783,1780906248000,-745.77686268,0.00013799,2]
[424444782,1780906248000,-1196.73115075,0.00013799,2]
[424444785,1780906248000,-19815.46575533,0.000138,2]
[424444786,1780906248000,-5000.0,0.000138,2]
[424444784,1780906248000,-401.19898154,0.00013799,2]
[424444787,1780906248000,-5000.0,0.000138,2]
[424444788,1780906248000,-500.0,0.00013898,2]
[424444791,1780906248000,-6833.2,0.000139,2]
[424444790,1780906248000,-2036.83401768,0.000139,2]
[424444749,1780906248000,-2022.19752057,0.00013799,2]
[424444792,1780906248000,-6975.0,0.000139,2]
[424444776,1780906248000,-745.77686273,0.00013799,2]
[424444789,1780906248000,-580952.83134099,0.000139,2]
[424444781,1780906248000,-1196.73115075,0.00013799,2]
[424444756,1780906248000,-2022.19752057,0.00013799,2]
[424444750,1780906248000,-745.77686273,0.00013799,2]
[424444758,1780906248000,-2022.19752057,0.00013799,2]
[424444768,1780906248000,-745.77686273,0.00013799,2]
[424444757,1780906248000,-745.77686273,0.00013799,2]
[424444748,1780906248000,-745.77686273,0.00013799,2]
[424444769,1780906248000,-2022.19752057,0.00013799,2]
[424444759,1780906248000,-745.77686273,0.00013799,2]
[424444761,1780906248000,-2022.19752057,0.00013799,2]
[424444764,1780906248000,-2022.19752057,0.00013799,2]
[424444763,1780906248000,-745.77686273,0.00013799,2]
[424444762,1780906248000,-745.77686273,0.00013799,2]
[424444767,1780906248000,-2022.19752057,0.00013799,2]
[424444766,1780906248000,-745.77686273,0.00013799,2]
[424444765,1780906248000,-745.77686273,0.00013799,2]
[424444770,1780906248000,-745.77686273,0.00013799,2]
[424444771,1780906248000,-2022.19752057,0.00013799,2]
[424444760,1780906248000,-2022.19752057,0.00013799,2]
[424444772,1780906248000,-745.77686273,0.00013799,2]
[424444805,1780906928000,5000.0,7.6e-05,2]
[424444807,1780906928000,798.60421398,7.6e-05,2]
[424444804,1780906928000,5191.86598357,7.6e-05,2]
[424444806,1780906928000,2661.09,7.6e-05,2]
[424444809,1780906997000,165.059733,0.00010832,120]
[424444811,1780907129000,-300.0,8.343e-05,2]
[424444813,1780907338000,-5000.0,8.095e-05,2]
[424444814,1780907338000,-5000.0,8.177e-05,2]
[424444821,1780907340000,-275.59723782,0.0001,2]
[424444820,1780907340000,-300.0,9.177e-05,2]
[424444819,1780907340000,-300.0,9.177e-05,2]
[424444818,1780907340000,-3966.7148113,9.123e-05,2]
[424444817,1780907340000,-766.80421098,8.6e-05,2]
[424444816,1780907340000,-300.0,8.343e-05,2]
[424444815,1780907340000,-4090.8837399,8.26e-05,2]
[424444823,1780907342000,-9275.59723782,0.0001,2]
[424444822,1780907342000,-724.40276218,0.0001,2]
[424444825,1780907343000,-505.17239861,0.0001,2]
[424444824,1780907343000,-974.46435802,0.0001,2]
[424444826,1780907345000,5000.0,0.0001,2]
[424444827,1780907363000,-2066.2959864,0.00010724,2]
[424444829,1780907420000,-496.4228307,8.094e-05,2]
[424444836,1780907420000,-500.0,8.094e-05,2]
[424444832,1780907420000,-500.0,8.094e-05,2]
[424444831,1780907420000,-279.55703093,8.094e-05,2]
[424444833,1780907420000,-500.0,8.094e-05,2]
[424444834,1780907420000,-500.0,8.094e-05,2]
[424444835,1780907420000,-500.0,8.094e-05,2]
[424444830,1780907420000,-500.0,8.094e-05,2]
[424444839,1780907420000,-500.0,8.094e-05,2]
[424444838,1780907420000,-500.0,8.094e-05,2]
[424444841,1780907420000,-500.0,8.094e-05,2]
[424444840,1780907420000,-500.0,8.094e-05,2]
[424444842,1780907420000,-500.0,8.094e-05,2]
[424444844,1780907420000,-500.0,8.094e-05,2]
[424444843,1780907420000,-500.0,8.094e-05,2]
[424444845,1780907420000,-500.0,8.094e-05,2]
[424444837,1780907420000,-500.0,8.094e-05,2]
[424444849,1780907421000,-224.02013837,8.094e-05,2]
[424444848,1780907421000,-500.0,8.094e-05,2]
[424444847,1780907421000,-500.0,8.094e-05,2]
[424444846,1780907421000,-500.0,8.094e-05,2]
[424444851,1780907423000,-500.0,8.094e-05,2]
[424444850,1780907423000,-275.97986163,8.094e-05,2]
[424444852,1780907423000,-500.0,8.094e-05,2]
[424444857,1780907423000,-2389.52473988,0.00010724,2]
[424444854,1780907423000,-500.0,8.094e-05,2]
[424444855,1780907423000,-334.49539849,8.094e-05,2]
[424444856,1780907423000,-5000.0,0.00010617,2]
[424444853,1780907423000,-500.0,8.094e-05,2]
[424444859,1780907427000,-165.059733,0.00010832,2]
[424444858,1780907427000,-544.17927372,0.00010724,2]
[424444900,1780907432000,-670.94,0.000115,2]
[424444906,1780907432000,-5852.06130876,0.000115,2]
[424444897,1780907432000,-323.06873358,0.000115,2]
[424444910,1780907432000,-653.0,0.000115,2]
[424444908,1780907432000,-673.65800602,0.000115,2]
[424444915,1780907432000,-5781.91352802,0.000115,2]
[424444938,1780907433000,-5000.0,0.00011385,2]
[424444939,1780907433000,-5000.0,0.000115,2]
[424445005,1780907438000,-693.42,0.00013698,2]
[424445004,1780907438000,-693.42,0.00013698,2]
[424445010,1780907438000,-693.42,0.00013698,2]
[424445011,1780907438000,-693.42,0.00013698,2]
[424445009,1780907438000,-693.42,0.00013698,2]
[424445013,1780907438000,-693.42,0.00013698,2]
[424445014,1780907438000,-693.42,0.00013698,2]
[424445020,1780907438000,-693.42,0.00013698,2]
[424445016,1780907438000,-693.42,0.00013698,2]
[424445015,1780907438000,-693.42,0.00013698,2]
[424445019,1780907438000,-693.42,0.00013698,2]
[424445017,1780907438000,-693.42,0.00013698,2]
[424445018,1780907438000,-693.42,0.00013698,2]
[424445021,1780907438000,-693.42,0.00013698,2]
[424445022,1780907438000,-693.42,0.00013698,2]
[424445023,1780907438000,-693.42,0.00013698,2]
[424445024,1780907438000,-693.42,0.00013698,2]
[424445025,1780907438000,-693.52572024,0.00013698,2]
[424445027,1780907438000,-603.06,0.00013698,2]
[424445026,1780907438000,-603.06,0.00013698,2]
[424445034,1780907438000,-603.06,0.00013698,2]
[424445031,1780907438000,-603.06,0.00013698,2]
[424445006,1780907438000,-693.42,0.00013698,2]
[424445012,1780907438000,-693.42,0.00013698,2]
[424445003,1780907438000,-693.42,0.00013698,2]
[424444994,1780907438000,-151.5,0.00013424,2]
[424445008,1780907438000,-693.42,0.00013698,2]
[424444980,1780907438000,-3255.30886204,0.000115,2]
[424444982,1780907438000,-6784.54182759,0.000115,2]
[424444983,1780907438000,-176.91743621,0.0001159,2]
[424444981,1780907438000,-492.72343554,0.000115,2]
[424444984,1780907438000,-397.66616725,0.0001159,2]
[424444985,1780907438000,-322.83510282,0.00011629,2]
[424444986,1780907438000,-238.1688685,0.00011629,2]
[424444992,1780907438000,-151.5,0.00013424,2]
[424444987,1780907438000,-168.2624073,0.00012002,2]
[424444990,1780907438000,-170.14095444,0.00013424,2]
[424444988,1780907438000,-4271.7798318,0.00012068,2]
[424444993,1780907438000,-151.5,0.00013424,2]
[424444995,1780907438000,-151.5,0.00013424,2]
[424444991,1780907438000,-151.5,0.00013424,2]
[424444989,1780907438000,-413.904875,0.00013244,2]
[424444997,1780907438000,-7607.6676741,0.00013424,2]
[424444996,1780907438000,-231.68319178,0.00013424,2]
[424444998,1780907438000,-151.0,0.00013598,2]
[424445000,1780907438000,-151.0,0.00013598,2]
[424444999,1780907438000,-151.0,0.00013598,2]
[424445001,1780907438000,-258.99340074,0.00013598,2]
[424445002,1780907438000,-693.42,0.00013698,2]
[424445007,1780907438000,-693.42,0.00013698,2]
[424445032,1780907438000,-603.06,0.00013698,2]
[424445029,1780907438000,-603.06,0.00013698,2]
[424445062,1780907438000,-151.0,0.00013799,2]
[424445030,1780907438000,-603.06,0.00013698,2]
[424445064,1780907438000,-500.0,0.00013972,2]
[424445065,1780907438000,-276.32532301,0.00013999,2]
[424445063,1780907438000,-413.904875,0.00013801,2]
[424445066,1780907438000,-500.0,0.00013999,2]
[424445067,1780907438000,-65230.0,0.00014,2]
[424445068,1780907438000,-151.0,0.00014,2]
[424445069,1780907438000,-151.0,0.00014,2]
[424445073,1780907438000,-326.4407506,0.00014099,2]
[424445070,1780907438000,-151.0,0.00014,2]
[424445072,1780907438000,-457.2882,0.00014099,2]
[424445071,1780907438000,-152.0,0.00014034,7]
[424445074,1780907438000,-326.4407506,0.00014099,2]
[424445076,1780907438000,-332.0488335,0.00014099,2]
[424445078,1780907438000,-457.2882,0.00014099,2]
[424445077,1780907438000,-464.6597263,0.00014099,2]
[424445079,1780907438000,-457.2882002,0.00014099,2]
[424445080,1780907438000,-457.2882,0.00014099,2]
[424445083,1780907438000,-151.0,0.00014336,2]
[424445081,1780907438000,-500.0,0.00014246,2]
[424445084,1780907438000,-168.3888056,0.00014336,2]
[424445082,1780907438000,-7415.28853913,0.00014302,2]
[424445085,1780907438000,-500.0,0.00014336,2]
[424445028,1780907438000,-603.06,0.00013698,2]
[424445061,1780907438000,-151.0,0.00013799,2]
[424445060,1780907438000,-151.0,0.00013799,2]
[424445075,1780907438000,-315.7263322,0.00014099,2]
[424445054,1780907438000,-1000.0,0.00013699,2]
[424445033,1780907438000,-603.06,0.00013698,2]
[424445057,1780907438000,-368.2689815,0.00013799,2]
[424445036,1780907438000,-603.06,0.00013698,2]
[424445035,1780907438000,-603.06,0.00013698,2]
[424445037,1780907438000,-603.06,0.00013698,2]